Workbook

Sheet reservations_45d05ca4-f2ee-4014
A1: checkin_date | B1: checkout_date | C1: code | D1: platform | E1: property_id | F1: property_name | G1: status | H1: currency | I1: payout | J1: net to owner
A2: 2025-02-27 | B2: 2025-03-02 | C2: HMY2TX9XWR | D2: airbnb | E2: 1289736 | F2: 644 N Bluff # 2 - 67208 | G2: accepted | H2: USD | I2: 297.64 | J2: =I2*0.8 -> 238.112
A3: 2025-01-07 | B3: 2025-01-10 | C3: HMYYE348WW | D3: airbnb | E3: 1289736 | F3: 644 N Bluff # 2 - 67208 | G3: accepted | H3: USD | I3: 210.05 | J3: =I3*0.8 -> 168.04
A4: 2025-01-12 | B4: 2025-01-15 | C4: HMTZ8HETCR | D4: airbnb | E4: 1289736 | F4: 644 N Bluff # 2 - 67208 | G4: accepted | H4: USD | I4: 210.05 | J4: =I4*0.8 -> 168.04
A5: 2025-02-01 | B5: 2025-02-27 | C5: HMRH8P5N3H | D5: airbnb | E5: 1289736 | F5: 644 N Bluff # 2 - 67208 | G5: accepted | H5: USD | I5: 1362.85 | J5: 1090.28
A6: 2025-01-28 | B6: 2025-01-31 | C6: HMBFZPHSE9 | D6: airbnb | E6: 1289736 | F6: 644 N Bluff # 2 - 67208 | G6: accepted | H6: USD | I6: 210.05 | J6: 168.04
A7: 2025-04-04 | B7: 2025-04-13 | C7: HMWT9J3R5Z | D7: airbnb | E7: 1289736 | F7: 644 N Bluff # 2 - 67208 | G7: accepted | H7: USD | I7: 614.34 | J7: 491.472
A8: 2025-03-07 | B8: 2025-03-11 | C8: HMYPJ9D82B | D8: airbnb | E8: 1289736 | F8: 644 N Bluff # 2 - 67208 | G8: accepted | H8: USD | I8: 285.42 | J8: 228.336
A9: 2025-03-30 | B9: 2025-04-02 | C9: HMWDD2T8JF | D9: airbnb | E9: 1289736 | F9: 644 N Bluff # 2 - 67208 | G9: accepted | H9: USD | I9: 225.18 | J9: 180.144
A10: 2025-03-02 | B10: 2025-03-05 | C10: HMMQ9CMSAW | D10: airbnb | E10: 1289736 | F10: 644 N Bluff # 2 - 67208 | G10: accepted | H10: USD | I10: 215.58 | J10: 172.464
A11: 2025-03-14 | B11: 2025-03-22 | C11: HMA2DMA2S5 | D11: airbnb | E11: 1289736 | F11: 644 N Bluff # 2 - 67208 | G11: accepted | H11: USD | I11: 767.22 | J11: 613.776
A12: 2025-03-23 | B12: 2025-03-28 | C12: HMX4RZ2NFJ | D12: airbnb | E12: 1289736 | F12: 644 N Bluff # 2 - 67208 | G12: accepted | H12: USD | I12: 423.54 | J12: 338.832
A13: 2025-03-28 | B13: 2025-03-30 | C13: HMKZXXZZW2 | D13: airbnb | E13: 1289736 | F13: 644 N Bluff # 2 - 67208 | G13: accepted | H13: USD | I13: 168.44 | J13: 134.752
A14: 2025-04-13 | B14: 2025-05-16 | C14: HMKQRD9YRW | D14: airbnb | E14: 1289736 | F14: 644 N Bluff # 2 - 67208 | G14: accepted | H14: USD | I14: 1955.23 | J14: 1564.184
A15: 2025-05-16 | B15: 2025-05-18 | C15: HMS3BSNQMS | D15: airbnb | E15: 1289736 | F15: 644 N Bluff # 2 - 67208 | G15: accepted | H15: USD | I15: 259.23 | J15: 207.384
A16: 2025-05-31 | B16: 2025-08-10 | C16: HMZ8DBZE39 | D16: airbnb | E16: 1289736 | F16: 644 N Bluff # 2 - 67208 | G16: accepted | H16: USD | I16: 4413.5 | J16: 3530.8
A17: 2025-05-18 | B17: 2025-05-27 | C17: HMAZM88T5R | D17: airbnb | E17: 1289736 | F17: 644 N Bluff # 2 - 67208 | G17: accepted | H17: USD | I17: 740.25 | J17: 592.2
A18: 2025-05-27 | B18: 2025-05-31 | C18: HMZSDCYPXB | D18: airbnb | E18: 1289736 | F18: 644 N Bluff # 2 - 67208 | G18: accepted | H18: USD | I18: 419.04 | J18: 335.232
A19: 2025-09-01 | B19: 2025-09-16 | C19: HMKKHF2HBB | D19: airbnb | E19: 1289736 | F19: 644 N Bluff # 2 - 67208 | G19: accepted | H19: USD | I19: 933.28 | J19: 746.624
A20: 2025-08-10 | B20: 2025-08-19 | C20: HMHZ2AFDPX | D20: airbnb | E20: 1289736 | F20: 644 N Bluff # 2 - 67208 | G20: accepted | H20: USD | I20: 655.86 | J20: 524.688
A21: 2025-10-17 | B21: 2025-10-19 | C21: HMTTW2PDKK | D21: airbnb | E21: 1289736 | F21: 644 N Bluff # 2 - 67208 | G21: accepted | H21: USD | I21: 232.16 | J21: 185.728
A22: 2025-09-19 | B22: 2025-09-26 | C22: HMTNSZW433 | D22: airbnb | E22: 1289736 | F22: 644 N Bluff # 2 - 67208 | G22: accepted | H22: USD | I22: 524.33 | J22: 419.464
A23: 2025-09-26 | B23: 2025-09-28 | C23: HMDXJHJEP9 | D23: airbnb | E23: 1289736 | F23: 644 N Bluff # 2 - 67208 | G23: accepted | H23: USD | I23: 173.67 | J23: 138.936
A24: 2025-10-19 | B24: 2025-10-31 | C24: HMCBEJ2X9N | D24: airbnb | E24: 1289736 | F24: 644 N Bluff # 2 - 67208 | G24: accepted | H24: USD | I24: 866.54 | J24: 693.232
A25: 2025-11-03 | B25: 2025-11-06 | C25: HMCJCNC9MZ | D25: airbnb | E25: 1289736 | F25: 644 N Bluff # 2 - 67208 | G25: accepted | H25: USD | I25: 234.35 | J25: 187.48
A26: 2025-11-13 | B26: 2025-12-14 | C26: HM5MXN2DH9 | D26: airbnb | E26: 1289736 | F26: 644 N Bluff # 2 - 67208 | G26: accepted | H26: USD | I26: 1830.56 | J26: 1464.448
A27: 2025-12-18 | B27: 2025-12-28 | C27: HMTXTDFJ8C | D27: airbnb | E27: 1289736 | F27: 644 N Bluff # 2 - 67208 | G27: accepted | H27: USD | I27: 768.78 | J27: 615.024
H29: TOTAL | I29: =SUM(I2:I28) -> 18997.14 | J29: =SUM(J2:J28) -> 15197.712
A34: 2025-01-01 | B34: 2025-01-24 | C34: SKE2SA | D34: manual | E34: 1178466 | F34: 644 N Bluff #1 - 67208 | G34: accepted | H34: USD | I34: 1226 | J34: =I34*0.8 -> 980.8
A35: 2025-01-30 | B35: 2025-02-23 | C35: HM3545KPSW | D35: airbnb | E35: 1178466 | F35: 644 N Bluff #1 - 67208 | G35: accepted | H35: USD | I35: 1754.48 | J35: =I35*0.8 -> 1403.584
A36: 2025-02-23 | B36: 2025-02-28 | C36: HMQXKZ9N2R | D36: airbnb | E36: 1178466 | F36: 644 N Bluff #1 - 67208 | G36: accepted | H36: USD | I36: 340.84 | J36: 272.672
A37: 2025-02-28 | B37: 2025-03-07 | C37: HMRMHPYX5P | D37: airbnb | E37: 1178466 | F37: 644 N Bluff #1 - 67208 | G37: accepted | H37: USD | I37: 465.83 | J37: 372.664
A38: 2025-03-07 | B38: 2025-03-10 | C38: HMRAA3BD4P | D38: airbnb | E38: 1178466 | F38: 644 N Bluff #1 - 67208 | G38: accepted | H38: USD | I38: 155.86 | J38: 124.688
A39: 2025-03-31 | B39: 2025-04-07 | C39: HMJYA4CHRY | D39: airbnb | E39: 1178466 | F39: 644 N Bluff #1 - 67208 | G39: accepted | H39: USD | I39: 428.88 | J39: 343.104
A40: 2025-03-14 | B40: 2025-03-16 | C40: HMQKRAJ8ZA | D40: airbnb | E40: 1178466 | F40: 644 N Bluff #1 - 67208 | G40: accepted | H40: USD | I40: 178.46 | J40: 142.768
A41: 2025-03-20 | B41: 2025-03-23 | C41: HMS2HZZAQJ | D41: airbnb | E41: 1178466 | F41: 644 N Bluff #1 - 67208 | G41: accepted | H41: USD | I41: 606.13 | J41: 484.904
A42: 2025-05-10 | B42: 2025-05-14 | C42: HMJNKE9N8R | D42: airbnb | E42: 1178466 | F42: 644 N Bluff #1 - 67208 | G42: accepted | H42: USD | I42: 400.3 | J42: 320.24
A43: 2025-03-24 | B43: 2025-03-31 | C43: HMK3FRETHQ | D43: airbnb | E43: 1178466 | F43: 644 N Bluff #1 - 67208 | G43: accepted | H43: USD | I43: 508.99 | J43: 407.192
A44: 2025-04-09 | B44: 2025-05-09 | C44: HMTB9ZJEXT | D44: airbnb | E44: 1178466 | F44: 644 N Bluff #1 - 67208 | G44: accepted | H44: USD | I44: 1849.25 | J44: 1479.4
A45: 2025-05-14 | B45: 2025-11-23 | C45: HMFHTY3ZWJ | D45: airbnb | E45: 1178466 | F45: 644 N Bluff #1 - 67208 | G45: accepted | H45: USD | I45: 11764.14 | J45: 9411.312
A46: 2025-11-23 | B46: 2026-02-23 | C46: HMKFS8SYY3 | D46: airbnb | E46: 1178466 | F46: 644 N Bluff #1 - 67208 | G46: accepted | H46: USD | I46: 6032.04 | J46: 4825.632
H48: TOTAL | I48: =SUM(I34:I47) -> 25711.2 | J48: =SUM(J34:J47) -> 20568.96
A50: This unit started in July
A51: 2025-11-14 | B51: 2025-11-16 | C51: HM22NPT5CR | D51: airbnb | E51: 1910468 | F51: 646 N Bluff #1 - 67208 | G51: accepted | H51: USD | I51: 229.97 | J51: 183.976
A52: 2025-11-07 | B52: 2025-11-12 | C52: HM5E392HEH | D52: airbnb | E52: 1910468 | F52: 646 N Bluff #1 - 67208 | G52: accepted | H52: USD | I52: 412.55 | J52: 330.04
A53: 2025-11-26 | B53: 2025-11-28 | C53: HMFE9M5DW8 | D53: airbnb | E53: 1910468 | F53: 646 N Bluff #1 - 67208 | G53: accepted | H53: USD | I53: 127.82 | J53: 102.256
A54: 2025-11-28 | B54: 2026-04-01 | C54: HMWC93FH2D | D54: airbnb | E54: 1910468 | F54: 646 N Bluff #1 - 67208 | G54: accepted | H54: USD | I54: 8907.15 | J54: 7125.72
A55: 2025-07-08 | B55: 2025-08-08 | C55: HOST-D91V0H | D55: direct | E55: 1910468 | F55: 646 N Bluff #1 - 67208 | G55: accepted | H55: USD | I55: 1868.56 | J55: 1494.848
A56: 2025-08-08 | B56: 2025-10-31 | C56: HOST-EKNGDJ | D56: direct | E56: 1910468 | F56: 646 N Bluff #1 - 67208 | G56: accepted | H56: USD | I56: 4438.99 | J56: 3551.192
H58: TOTAL | I58: =SUM(I51:I57) -> 15985.04 | J58: =SUM(J51:J57) -> 12788.032
I61: total 2025 | J61: =J58+J48+J29 -> 48554.704
